{"text_format":"1","workbook":"xlsx","n_sheets":2,"sheets":["000","EK DERS ÇİZELGESİ"],"not_rendered":{"charts":0,"images":0,"macros":1,"external_links":0,"defined_names":1,"comments":1,"pivot_tables":0},"unopened":[],"bounds":{"document_bytes":16777216,"sheet_cells":100000,"rows_first":2000,"rows_last":500,"rows_between":2000,"halvings":0,"cell_chars":16384,"cell_head_chars":4096},"cells_cut":0,"cells_raw":0,"read":"whole","date_system":"1900"}

{"sheet":"000","index":0,"n_rows":0,"n_cols":0,"rows_kept":0,"cut":false,"hidden":true,"merged":[]}

{"sheet":"EK DERS ÇİZELGESİ","index":1,"n_rows":53,"n_cols":39,"rows_kept":53,"cut":false,"hidden":false,"merged":[[43,31,43,33],[43,36,43,37],[39,31,39,37],[38,9,38,11],[42,35,42,37],[38,14,38,24],[38,12,38,13],[42,31,42,33],[40,33,40,37],[41,35,41,37],[1,31,1,36],[3,1,4,1],[3,37,4,37],[37,32,37,35],[2,31,2,36],[21,2,28,2],[29,2,36,2],[3,0,4,0],[3,2,4,2],[38,5,38,8],[38,0,38,4],[41,31,41,33],[3,3,4,3],[5,1,12,1],[13,1,20,1],[21,1,28,1],[29,1,36,1],[5,0,12,0],[13,0,20,0],[21,0,28,0],[29,0,36,0],[5,2,12,2],[13,2,20,2]]}
["Okul:","…………………. MÜDÜRLÜĞÜ SÖZLEŞMELİ ÖĞRETMENLER EKDERS ÇİZELGESİ"]
["İli:",null,null,null,null,null,null,null,null,null,null,null,null,null,null,null,null,null,null,null,null,null,null,null,null,null,null,null,null,null,null,"AİT OLDUĞU AY:",null,null,null,null,null,"EKİM-KASIM"]
["İlçesi:",null,null,null,null,null,null,null,null,null,null,null,null,null,null,null,null,null,null,null,null,null,null,null,null,null,null,null,null,null,null,"BÜTÇE YILI:",null,null,null,null,null,2018]
["SIRA\nNO"," ADI VE SOYADI","Görevi",null,"Haf.Ders"," G Ü N L Ü K   O K U T U L A N  E K  D E R S   S A A T L E R İ",null,null,null,null,null,null,null,null,null,null,null,null,null,null,null,null,null,null,null,null,null,null,null,null,null,null,null,null,null,null,"AY.D.","AÇIKLAMALAR"]
[null,null,null,null,"S.Sayısı",15,16,17,18,19,20,21,22,23,24,25,26,27,28,29,30,31,1,2,3,4,5,6,7,8,9,10,11,12,13,14,"S.TOP."]
[1,"REMZİ SEVİNÇ","Müdür Yet.Öğrt.","Ders/Gündüz",null,null,null,null,null,null,null,null,null,null,null,null,null,null,null,null,null,null,null,null,null,null,null,null,null,null,null,null,null,null,null,null,79]
[null,null,null,"Nöbet",null,null,null,null,null,null,null,null,null,null,null,null,null,null,null,null,null,null,null,null,null,null,null,null,null,null,null,null,null,null,null,null,{"$f":"SUM(F7:AJ7)","v":0}]
[null,null,null,"Takviye Kurs(Gündüz)",null,null,null,null,null,null,null,null,null,null,null,null,null,null,null,null,null,null,null,null,null,null,null,null,null,null,null,null,null,null,null,null,0]
[null,null,null,"Takviye Kurs(Gece)",null,null,null,null,null,null,null,null,null,null,null,null,null,null,null,null,null,null,null,null,null,null,null,null,null,null,null,null,null,null,null,null,0]
[null,null,null,"İYEP",null,null,null,null,null,null,null,null,null,null,null,null,null,null,null,null,null,null,null,null,null,null,null,null,null,null,null,null,null,null,null,null,0]
[null,null,null,"Destek Odası",null,null,null,null,null,null,null,null,null,null,null,null,null,null,null,null,null,null,null,null,null,null,null,null,null,null,null,null,null,null,null,null,0]
[null,null,null,"Egzersiz",null,null,null,null,null,null,null,null,null,null,null,null,null,null,null,null,null,null,null,null,null,null,null,null,null,null,null,null,null,null,null,null,0]
[null,null,null,"Belletmenlik",null,null,null,null,null,null,null,null,null,null,null,null,null,null,null,null,null,null,null,null,null,null,null,null,null,null,null,null,null,null,null,null,0]
[2,null,"Öğretmen","Ders/Gündüz",null,null,null,null,null,null,null,null,null,null,null,null,null,null,null,null,null,null,null,null,null,null,null,null,null,null,null,null,null,null,null,null,0]
[null,null,null,"Nöbet",null,null,null,null,null,null,null,null,null,null,null,null,null,null,null,null,null,null,null,null,null,null,null,null,null,null,null,null,null,null,null,null,0]
[null,null,null,"Takviye Kurs(Gündüz)",null,null,null,null,null,null,null,null,null,null,null,null,null,null,null,null,null,null,null,null,null,null,null,null,null,null,null,null,null,null,null,null,0]
[null,null,null,"Takviye Kurs(Gece)",null,null,null,null,null,null,null,null,null,null,null,null,null,null,null,null,null,null,null,null,null,null,null,null,null,null,null,null,null,null,null,null,0]
[null,null,null,"İYEP",null,null,null,null,null,null,null,null,null,null,null,null,null,null,null,null,null,null,null,null,null,null,null,null,null,null,null,null,null,null,null,null,0]
[null,null,null,"Destek Odası",null,null,null,null,null,null,null,null,null,null,null,null,null,null,null,null,null,null,null,null,null,null,null,null,null,null,null,null,null,null,null,null,0]
[null,null,null,"Egzersiz",null,null,null,null,null,null,null,null,null,null,null,null,null,null,null,null,null,null,null,null,null,null,null,null,null,null,null,null,null,null,null,null,0]
[null,null,null,"Belletmenlik",null,null,null,null,null,null,null,null,null,null,null,null,null,null,null,null,null,null,null,null,null,null,null,null,null,null,null,null,null,null,null,null,0]
[3,null,"Öğretmen","Ders/Gündüz",null,null,null,null,null,null,null,null,null,null,null,null,null,null,null,null,null,null,null,null,null,null,null,null,null,null,null,null,null,null,null,null,0]
[null,null,null,"Nöbet",null,null,null,null,null,null,null,null,null,null,null,null,null,null,null,null,null,null,null,null,null,null,null,null,null,null,null,null,null,null,null,null,0]
[null,null,null,"Takviye Kurs(Gündüz)",null,null,null,null,null,null,null,null,null,null,null,null,null,null,null,null,null,null,null,null,null,null,null,null,null,null,null,null,null,null,null,null,0]
[null,null,null,"Takviye Kurs(Gece)",null,null,null,null,null,null,null,null,null,null,null,null,null,null,null,null,null,null,null,null,null,null,null,null,null,null,null,null,null,null,null,null,0]
[null,null,null,"İYEP",null,null,null,null,null,null,null,null,null,null,null,null,null,null,null,null,null,null,null,null,null,null,null,null,null,null,null,null,null,null,null,null,0]
[null,null,null,"Destek Odası",null,null,null,null,null,null,null,null,null,null,null,null,null,null,null,null,null,null,null,null,null,null,null,null,null,null,null,null,null,null,null,null,0]
[null,null,null,"Egzersiz",null,null,null,null,null,null,null,null,null,null,null,null,null,null,null,null,null,null,null,null,null,null,null,null,null,null,null,null,null,null,null,null,0]
[null,null,null,"Belletmenlik",null,null,null,null,null,null,null,null,null,null,null,null,null,null,null,null,null,null,null,null,null,null,null,null,null,null,null,null,null,null,null,null,0]
[4,null,"Öğretmen","Ders/Gündüz",null,null,null,null,null,null,null,null,null,null,null,null,null,null,null,null,null,null,null,null,null,null,null,null,null,null,null,null,null,null,null,null,0]
[null,null,null,"Nöbet",null,null,null,null,null,null,null,null,null,null,null,null,null,null,null,null,null,null,null,null,null,null,null,null,null,null,null,null,null,null,null,null,0]
[null,null,null,"Takviye Kurs(Gündüz)",null,null,null,null,null,null,null,null,null,null,null,null,null,null,null,null,null,null,null,null,null,null,null,null,null,null,null,null,null,null,null,null,0]
[null,null,null,"Takviye Kurs(Gece)",null,null,null,null,null,null,null,null,null,null,null,null,null,null,null,null,null,null,null,null,null,null,null,null,null,null,null,null,null,null,null,null,0]
[null,null,null,"İYEP",null,null,null,null,null,null,null,null,null,null,null,null,null,null,null,null,null,null,null,null,null,null,null,null,null,null,null,null,null,null,null,null,0]
[null,null,null,"Destek Odası",null,null,null,null,null,null,null,null,null,null,null,null,null,null,null,null,null,null,null,null,null,null,null,null,null,null,null,null,null,null,null,null,0]
[null,null,null,"Egzersiz",null,null,null,null,null,null,null,null,null,null,null,null,null,null,null,null,null,null,null,null,null,null,null,null,null,null,null,null,null,null,null,null,0]
[null,null,null,"Belletmenlik",null,null,null,null,null,null,null,null,null,null,null,null,null,null,null,null,null,null,null,null,null,null,null,null,null,null,null,null,null,null,null,null,0]
[null,null,null,null,null,null,null,null,null,null,null,null,null,null,null,null,null,null,null,null,null,null,null,null,null,null,null,null,null,null,null,null,"TOPLAM:",null,null,null,{"$f":"SUM(AK6:AK37)","v":79}]
["Yukarıda belirtilen görevlilerce",null,null,null,null,"Ekim-Kasım",null,null,null,"ayında",null,null,{"$f":"AK38","v":79},null,"saat ekders görevi yapılmıştır."]
[null,null,null,null,null,null,null,null,null,null,null,null,null,null,null,null,null,null,null,null,null,null,null,null,null,null,null,null,null,null,null,{"$f":"TODAY()","v":"2018-11-07"},null,null,null,null,null,null,{"$f":"COUNT(#REF!)","v":0}]
[" ","Müdür Yardımcısı",null,null,null,null,null,null,null,null,null,null,null,null,null,null,null,null,null,null,null,null,null,null,null,null,null,null,null,null,null,null,null,"Okul Müdürü"]
["Adı Soyadı","………………",null,null,null,null,null,null,null,null,null,null,null,null,null,null,null,null,null,null,null,null,null,null,null,null,null,null,null,null,null,"Adı Soyadı:",null,null,null,"………….."]
["Görevi","………………..",null,null,null,null,null,null,null,null,null,null,null,null,null,null,null,null,null,null,null,null,null,null,null,null,null,null,null,null,null,"Ünvanı:",null,null,null,"……………."]
["İmza",null,null,null,null,null,null,null,null,null,null,null,null,null,null,null,null,null,null,null,null,null,null,null,null,null,null,null,null,null,null,"İmzası:"]
[null,"NOTLAR:"]
[null,"1. Her ek ders bölümü ayrı ayrı doldurulacak. Gereksiz satırlar silinebilecektir. Örneği Belletmenlik yoksa, belletmen sütunu silinebilir. Gerekirse ek satır da eklenebilir."]
[null,"2.Ekdersler çizelgeye işlenirken detaylandırılacaktır. Geçen aydan ödenmeyen tutar eklenecekse veya bu ay kesinti yapılacaksa çizelgenin altına not olarak yazılacaktır."]
[null,"3. hazırlık planlamar, sosyal etkinlik ve sınıf öğretmenliği ekdersleri DERS bölümünde gösterilecektir."]
[null,"4. Ekders çizelgeleri her ayın son iş gününe kadar Müdürlüğümüze gönderilecek ve KBS sistemine işlenecektir. "]
[null,"5. Bunda sonra ekders gönderirken bu çizelgeyi kullanınız.  Çizelge ayrıca İlçemiz web sitesi dökümanlar bölümünde bulunacak ve gerekli görüldükçe güncellenecektir."]
[]
[null,"6. X harfi bulunduğu hücreyi kırmızı yapar. (kapatır). Silmek İçin Delete tuşuna basınız."]
[null,"7. Yüksek Lisans nedeniyle ekdersini arttırımlı alanlar için hazırlık planlama, klüp ve sınıf öğretmenliği  ekdersi arttırımlı olmadığından gerekli ayrımın yapılması ve çizelgede belirtimesi gerekmektedir."]